fUSD/lending_fUSD_20251120
["ID","MTS","AMOUNT","RATE_DAILY","PERIOD"]
[394477047,1763617651957,151.0,0.0003095,31]
[394477051,1763617652107,157.728061,0.00032877,31]
[394477053,1763617652179,155.661824,0.000395,120]
[394477058,1763617652445,151.0,0.000395,120]
[394477060,1763617652534,5520.0,0.000517,120]
[394477064,1763617652704,5520.0,0.000508,120]
[394477066,1763617652778,151.0,0.000395,120]
[394477068,1763617652855,242.873506,0.0003095,31]
[394477073,1763617653089,155.661824,0.0003095,31]
[394477075,1763617653155,242.873506,0.000395,120]
[394477079,1763617653375,155.661824,0.000395,120]
[394477081,1763617653443,242.873506,0.000395,120]
[394477086,1763617653684,155.661824,0.000395,120]
[394477088,1763617653755,151.0,0.0003095,31]
[394477094,1763617654047,151.0,0.000395,120]
[394477096,1763617654121,151.0,0.0003095,31]
[394477100,1763617654319,151.0,0.000395,120]
[394477101,1763617654385,151.0,0.000395,120]
[394477107,1763617654657,242.873506,0.0003095,31]
[394477109,1763617654724,155.661824,0.0003095,31]
[394477111,1763617654788,151.0,0.000395,120]
[394477114,1763617654951,155.661824,0.000395,120]
[394477117,1763617655045,242.873506,0.000395,120]
[394477120,1763617655248,155.661824,0.000395,120]
[394477124,1763617655404,242.873506,0.000395,120]
[394477132,1763617655779,151.0,0.0003095,31]
[394477134,1763617655857,150.0,0.00053446,30]
[394477136,1763617655920,1000.0,0.00053905,30]
[394477138,1763617655985,1000.0,0.00053848,30]
[394477140,1763617656061,151.0,0.000395,120]
[394477141,1763617656125,155.661824,0.0003095,31]
[394477143,1763617656192,1000.0,0.0005469,30]
[394477145,1763617656267,1000.0,0.00054521,30]
[394477147,1763617656342,1000.0,0.00052564,30]
[394477150,1763617656420,1000.0,0.00052348,30]
[394477152,1763617656487,151.0,0.000395,120]
[394477154,1763617656547,155.661824,0.000395,120]
[394477156,1763617656609,242.873506,0.0003095,31]
[394477158,1763617656674,1000.0,0.00054637,30]
[394477160,1763617656734,1000.0,0.00053644,30]
[394477162,1763617656796,155.66182,0.000395,120]
[394477164,1763617656859,242.873506,0.000395,120]
[394477167,1763617656971,409.10335995,0.00042027,120]
[394477169,1763617657047,242.873506,0.000395,120]
[394477185,1763617658025,242.873506,0.0003095,31]
[394477190,1763617658317,242.873506,0.000395,120]
[394477194,1763617658610,242.873509,0.000395,120]
[394477266,1763617664244,1799.3307,0.00038888,30]
[394477331,1763617668261,152.96,0.000362,30]
[394477565,1763617684095,5520.0,0.000516,120]
[394477566,1763617684328,5520.0,0.000507,120]
[394477567,1763617687595,194.584771,0.0003095,31]
[394477568,1763617688038,194.584771,0.000395,120]
[394477569,1763617688347,194.584771,0.000395,120]
[394477571,1763617689359,194.584771,0.0003095,31]
[394477572,1763617689659,194.584771,0.000395,120]
[394477573,1763617690078,194.584771,0.000395,120]
[394477574,1763617691034,194.584771,0.0003095,31]
[394477575,1763617691316,194.584771,0.000395,120]
[394477576,1763617691612,194.584771,0.000395,120]
[394477577,1763617692670,194.584771,0.0003095,31]
[394477578,1763617692970,194.584771,0.000395,120]
[394477579,1763617693273,194.584766,0.000395,120]
[394477580,1763617702897,151.0,0.0003095,31]
[394477581,1763617703041,400.0,0.00042027,120]
[394477582,1763617703208,151.0,0.000395,120]
[394477583,1763617703547,151.0,0.000395,120]
[394477584,1763617704450,151.0,0.0003095,31]
[394477585,1763617704826,151.0,0.000395,120]
[394477586,1763617705149,151.0,0.000395,120]
[394477587,1763617706208,151.0,0.0003095,31]
[394477588,1763617706521,151.0,0.000395,120]
[394477589,1763617706881,151.0,0.000395,120]
[394477590,1763617707809,180.619248,0.0003095,31]
[394477591,1763617709669,151.0,0.0003095,31]
[394477592,1763617709925,151.0,0.000395,120]
[394477593,1763617710223,151.0,0.000395,120]
[394477594,1763617710809,2000.0,0.0001583,2]
[394477595,1763617711125,151.0,0.0003095,31]
[394477596,1763617711370,151.0,0.0003095,31]
[394477597,1763617711409,151.0,0.000395,120]
[394477598,1763617711552,410.66908147,0.00042027,120]
[394477599,1763617711668,151.0,0.000395,120]
[394477600,1763617711707,151.0,0.000395,120]
[394477601,1763617711952,151.0,0.000395,120]
[394477602,1763617712607,161.376165,0.0003095,31]
[394477603,1763617712926,151.0,0.0003095,31]
[394477604,1763617712986,151.0,0.0003095,31]
[394477605,1763617713266,151.0,0.000395,120]
[394477606,1763617713308,151.0,0.000395,120]
[394477607,1763617713551,151.0,0.000395,120]
[394477608,1763617713615,151.0,0.000395,120]
[394477609,1763617714616,151.0,0.0003095,31]
[394477610,1763617715000,151.0,0.000395,120]
[394477611,1763617715133,151.0,0.0003095,31]
[394477612,1763617715289,151.0,0.000395,120]
[394477613,1763617715432,151.0,0.000395,120]
[394477614,1763617715806,1000.0,0.00052681,30]
[394477615,1763617715848,151.0,0.000395,120]
[394477616,1763617715888,5520.0,0.000516,120]
[394477617,1763617715927,1000.0,0.00053759,30]
[394477618,1763617715977,1000.0,0.00054303,30]
[394477619,1763617716060,5520.0,0.000507,120]
[394477620,1763617716324,1000.0,0.00053351,30]
[394477621,1763617716565,1000.0,0.00054101,30]
[394477622,1763617716777,1000.0,0.00054087,30]
[394477623,1763617717062,1000.0,0.0005477,30]
[394477624,1763617717252,1000.0,0.00052756,30]
[394477625,1763617717429,407.0423491,0.00042027,120]
[394477626,1763617728691,150.0,0.000421,60]
[394477627,1763617729290,324.09,0.000448,60]
[394477628,1763617745250,291.35406008,0.00042027,120]
[394477629,1763617746846,151.0,0.0003095,31]
[394477630,1763617746907,179.58583683,0.00028996,30]
[394477631,1763617747048,203.66920137,0.00042027,120]
[394477632,1763617747147,151.0,0.000395,120]
[394477633,1763617747254,151.0,0.0003095,31]
[394477634,1763617747439,5520.0,0.000516,120]
[394477635,1763617747486,151.0,0.000395,120]
[394477636,1763617747546,262.261099,0.000395,120]
[394477637,1763617747671,5520.0,0.000507,120]
[394477638,1763617747884,151.0,0.0003095,31]
[394477639,1763617748190,151.0,0.000395,120]
[394477640,1763617748488,151.0,0.000395,120]
[394477641,1763617749967,151.0,0.0003095,31]
[394477642,1763617750011,151.0,0.0003095,31]
[394477643,1763617750471,151.0,0.000395,120]
[394477644,1763617750509,151.0,0.000395,120]
[394477645,1763617750603,151.0,0.000395,120]
[394477646,1763617750686,151.0,0.000395,120]
[394477647,1763617751519,185.211014,0.0003095,31]
[394477648,1763617752053,165.97611536,0.00042027,60]
[394477649,1763617752306,207.25038455,0.00042027,120]
[394477650,1763617753775,152.76310957,0.00054795,30]
[394477651,1763617756075,379.40680141,0.00054795,30]
[394477652,1763617757409,156.97453122,0.00042027,120]
[394477653,1763617758752,166.48750952,0.00042027,120]
[394477654,1763617759476,218.20930484,0.00042027,120]
[394477655,1763617762434,300.0,0.000169,6]
[394477656,1763617762954,215.23069679,0.00042027,120]
[394477657,1763617764152,164.72574423,0.00042027,120]
[394477658,1763617764543,600.0,0.000172,6]
[394477659,1763617765488,206.66001051,0.00042027,120]
[394477660,1763617766631,900.0,0.000173,6]
[394477661,1763617767237,151.0,0.00039,120]
[394477662,1763617767420,161.092303,0.00039,120]
[394477663,1763617767611,151.0,0.000395,120]
[394477664,1763617768401,163.0,0.00042027,30]
[394477665,1763617768719,1300.0,0.000174,6]
[394477666,1763617769042,253.995663,0.00039,120]
[394477667,1763617769364,253.995663,0.000395,120]
[394477668,1763617770527,253.995663,0.00039,120]
[394477669,1763617770814,253.995663,0.000395,120]
[394477670,1763617771315,388.252257,0.00039,120]
[394477671,1763617771637,388.252257,0.000395,120]
[394477672,1763617772069,253.995663,0.00039,120]
[394477673,1763617772300,203.27107286,0.00042027,120]
[394477674,1763617772390,253.995663,0.000395,120]
[394477675,1763617772805,388.252257,0.00039,120]
[394477676,1763617773126,388.252257,0.000395,120]
[394477677,1763617773555,253.995663,0.00039,120]
[394477678,1763617773868,253.995664,0.000395,120]
[394477679,1763617774114,159.934933,0.00039,120]
[394477680,1763617774227,151.0,0.00039,120]
[394477681,1763617774315,388.252257,0.00039,120]
[394477682,1763617774601,388.252257,0.000395,120]
[394477683,1763617774720,175.651798,0.000395,120]
[394477684,1763617775880,388.252257,0.00039,120]
[394477685,1763617776175,388.252261,0.000395,120]
[394477686,1763617776947,211.47287756,0.00042027,120]
[394477687,1763617778466,151.0,0.00039,120]
[394477688,1763617778794,151.0,0.000395,120]
[394477689,1763617779026,5520.0,0.000516,120]
[394477690,1763617779256,5520.0,0.000507,120]
[394477691,1763617780005,286.551416,0.00039,120]
[394477692,1763617781296,151.0,0.00039,120]
[394477693,1763617781524,161.288786,0.000395,120]
[394477694,1763617783733,205.09638963,0.00042027,120]
[394477695,1763617785618,348.75901553,0.00042027,120]
[394477696,1763617787789,278.53876341,0.00042027,120]
[394477701,1763617789374,173.31001568,0.00042027,120]
[394477702,1763617792609,352.316127,0.00042027,120]
[394477703,1763617794369,168.86720548,0.00042027,120]
[394477704,1763617795252,1444.0,0.00052274,120]
[394477705,1763617796046,150.0,0.00015795,2]
[394477706,1763617803086,500.0,0.00037831,30]
[394477707,1763617806337,151.0,0.00039,120]
[394477708,1763617806533,185.85539902,0.00054795,30]
[394477709,1763617806648,151.0,0.000395,120]
[394477710,1763617807256,154.93471163,0.00054795,30]
[394477711,1763617808073,151.0,0.00039,120]
[394477712,1763617808366,196.154955,0.000395,120]
[394477713,1763617808801,11536.80977,7.945e-05,2]
[394477714,1763617810498,206.97524322,0.00054795,30]
[394477715,1763617810603,5520.0,0.000517,120]
[394477716,1763617811097,151.0,0.00039,120]
[394477717,1763617811212,5520.0,0.000508,120]
[394477718,1763617811427,151.0,0.000395,120]
[394477719,1763617815111,162.67210099,0.00054795,30]
[394477720,1763617819601,1738.87,0.000384,30]
[394477721,1763617819702,237.38363656,0.00042029,120]
[394477722,1763617819903,1738.87,0.000405,30]
[394477723,1763617820000,174.892637,0.00039,120]
[394477724,1763617820252,1738.87,0.00054,30]
[394477725,1763617820296,174.892637,0.000395,120]
[394477726,1763617821522,174.892637,0.00039,120]
[394477727,1763617821815,174.892637,0.000395,120]
[394477728,1763617822417,162.340226,0.00039,120]
[394477729,1763617823130,174.892637,0.00039,120]
[394477730,1763617823488,174.892637,0.000395,120]
[394477731,1763617824859,174.892637,0.00039,120]
[394477732,1763617825153,174.892639,0.000395,120]
[394477733,1763617826621,240.149099,0.00039,120]
[394477734,1763617826864,151.0,0.00039,120]
[394477735,1763617827159,151.0,0.000395,120]
[394477736,1763617827804,151.0,0.00039,120]
[394477737,1763617828115,151.0,0.000395,120]
[394477738,1763617828578,151.0,0.00039,120]
[394477739,1763617828835,156.395906,0.00039,120]
[394477740,1763617829204,156.395906,0.000395,120]
[394477741,1763617829258,151.0,0.000395,120]
[394477742,1763617829548,177.527133,0.00039,120]
[394477743,1763617830447,156.395906,0.00039,120]
[394477744,1763617830741,156.395906,0.000395,120]
[394477745,1763617831087,151.0,0.00039,120]
[394477746,1763617831425,243.017431,0.000395,120]
[394477747,1763617832020,156.395906,0.00039,120]
[394477749,1763617832256,-508.51899889,0.00016016,2]
[394477750,1763617832266,-2807.08149691,0.00016034,2]
[394477751,1763617832275,-300.0,0.00016116,2]
[394477752,1763617832283,-1200.0,0.00016116,2]
[394477754,1763617832293,-300.0,0.00016116,2]
[394477755,1763617832301,-9799.0810347,0.00016117,2]
[394477756,1763617832311,-1594.92,0.0001615,2]
[394477757,1763617832321,-508.51899884,0.00016159,2]
[394477758,1763617832331,-150.0,0.000162,2]
[394477759,1763617832340,-150.0,0.000162,2]
[394477760,1763617832350,-150.0,0.000162,2]
[394477761,1763617832359,-150.0,0.000162,2]
[394477762,1763617832369,-150.0,0.000162,2]
[394477763,1763617832377,-150.0,0.000162,2]
[394477764,1763617832386,-150.0,0.000162,2]
[394477765,1763617832396,-150.0,0.000162,2]
[394477766,1763617832405,-150.0,0.000162,2]
[394477767,1763617832414,-150.0,0.000162,2]
[394477768,1763617832424,-3156.45,0.00016218,2]
[394477769,1763617832434,-508.51899884,0.00016302,2]
[394477770,1763617832443,-150.0,0.0001635,2]
[394477771,1763617832452,-150.0,0.000164,2]
[394477772,1763617832462,-150.0,0.00016425,2]
[394477773,1763617832471,-508.51899884,0.00016445,2]
[394477774,1763617832480,-150.0,0.00016457,2]
[394477775,1763617832491,-150.0,0.000165,2]
[394477776,1763617832501,-150.0,0.000165,2]
[394477777,1763617832510,-175.0,0.000165,2]
[394477778,1763617832519,-150.0,0.0001656,2]
[394477779,1763617832528,-150.0,0.000166,2]
[394477780,1763617832537,-150.0,0.0001665,2]
[394477781,1763617832546,-150.0,0.0001665,2]
[394477782,1763617832555,-150.0,0.0001665,2]
[394477784,1763617832564,-610.0,0.0001667,2]
[394477786,1763617832573,-150.0,0.00016714,2]
[394477787,1763617832582,-703.77091931,0.00016731,2]
[394477788,1763617832594,-10182.16434936,0.00016731,2]
[394477789,1763617832604,-150.0,0.00016778,2]
[394477790,1763617832613,-263.36,0.00016796,2]
[394477792,1763617832622,-150.0,0.000168,2]
[394477794,1763617832631,-150.0,0.000168,2]
[394477795,1763617832640,-150.0,0.000168,2]
[394477797,1763617832650,-150.0,0.000168,2]
[394477798,1763617832659,-150.0,0.000168,2]
[394477799,1763617832669,-167.17,0.00016817,2]
[394477800,1763617832677,-163.82,0.00016821,2]
[394477801,1763617832686,-54168.01050671,0.00016831,2]
[394477802,1763617832815,-38490.20588922,0.00016831,2]
[394477803,1763617832828,-74172.71962591,0.00016831,2]
[394477804,1763617832876,156.395906,0.000395,120]
[394477805,1763617832956,-0.3695504,0.00016831,2]
[394477806,1763617832967,-347.489999,0.00016831,2]
[394477807,1763617832979,-482.13,0.00016831,2]
[394477808,1763617832991,-3431.62045917,0.00016831,2]
[394477809,1763617833003,-1922.19742957,0.00016831,2]
[394477810,1763617833016,-1006.51056091,0.00016831,2]
[394477811,1763617833034,-496.23588056,0.00016831,2]
[394477812,1763617833045,-2906.46441072,0.00016831,2]
[394477813,1763617833123,151.0,0.00039,120]
[394477814,1763617833704,156.395906,0.00039,120]
[394477815,1763617833925,158.416788,0.00039,120]
[394477816,1763617834030,156.395908,0.000395,120]
[394477817,1763617834123,151.0,0.000395,120]
[394477818,1763617834263,158.416788,0.000395,120]
[394477819,1763617834418,151.0,0.00039,120]
[394477820,1763617834983,151.0,0.000395,120]
[394477821,1763617835369,151.0,0.00039,120]
[394477822,1763617835502,158.416788,0.00039,120]
[394477823,1763617835668,151.0,0.000395,120]
[394477824,1763617835805,158.416788,0.000395,120]
[394477825,1763617835852,150.0,0.00053694,30]
[394477826,1763617836493,151.0,0.00039,120]
[394477827,1763617836539,382.0,0.00054795,31]
[394477828,1763617836585,290.986897,0.00039,120]
[394477829,1763617836788,151.0,0.000395,120]
[394477830,1763617836864,290.986897,0.000395,120]
[394477831,1763617837095,158.416788,0.00039,120]
[394477832,1763617837382,158.416788,0.000395,120]
[394477833,1763617838120,260.912376,0.00039,120]
[394477834,1763617838175,290.986897,0.00039,120]
[394477836,1763617838310,-508.51899884,0.00016588,2]
[394477837,1763617838320,-2599.48100116,0.00016831,2]
[394477838,1763617838333,-617.13385051,0.00016831,2]
[394477839,1763617838369,-579359.43083616,0.00016831,2]
[394477840,1763617838380,-4197.2333,0.00016831,2]
[394477841,1763617838391,-218.28985519,0.00016831,2]
[394477842,1763617838401,-150.0,0.00016859,2]
[394477843,1763617838412,-703.77091929,0.00016861,2]
[394477844,1763617838422,-10182.16434936,0.00016861,2]
[394477845,1763617838433,-500.0,0.00016873,2]
[394477846,1763617838443,-506.66564078,0.00016873,2]
[394477847,1763617838454,-500.0,0.00016873,2]
[394477848,1763617838465,-500.0,0.00016873,2]
[394477849,1763617838475,-500.0,0.00016873,2]
[394477850,1763617838486,-500.0,0.00016873,2]
[394477851,1763617838496,-500.0,0.00016873,2]
[394477852,1763617838507,-161.22490261,0.00016873,2]
[394477853,1763617838518,-500.0,0.00016873,2]
[394477854,1763617838528,-500.0,0.00016873,2]
[394477855,1763617838539,-150.0,0.00016875,2]
[394477856,1763617838549,-150.0,0.0001692,2]
[394477857,1763617838560,-550.0,0.00016929,2]
[394477858,1763617838570,-2500.0,0.0001693,2]
[394477859,1763617838581,-151.0,0.00016931,2]
[394477860,1763617838591,-151.0,0.00016931,2]
[394477861,1763617838602,-151.0,0.00016931,2]
[394477862,1763617838612,-151.0,0.00016931,2]
[394477863,1763617838623,-151.0,0.00016931,2]
[394477864,1763617838634,-290.36041466,0.00016931,2]
[394477865,1763617838644,-280.4614,0.00016931,2]
[394477866,1763617838655,-980.83536079,0.00016931,2]
[394477867,1763617838667,-9999.99,0.00016931,2]
[394477868,1763617838680,-38451.89,0.00016931,2]
[394477869,1763617838691,-9999.99,0.00016931,2]
[394477870,1763617838703,-7685.79,0.00016931,2]
[394477871,1763617838715,-7706.75,0.00016931,2]
[394477872,1763617838726,-9999.99,0.00016931,2]
[394477873,1763617838737,-9077.51,0.00016931,2]
[394477874,1763617838748,-2378.53,0.00016931,2]
[394477875,1763617838759,-496.15,0.00016931,2]
[394477876,1763617838769,-999.99,0.00016931,2]
[394477877,1763617838780,-150.99,0.00016931,2]
[394477878,1763617838791,-1833.46,0.00016931,2]
[394477879,1763617838801,-39681.31,0.00016931,2]
[394477880,1763617838812,-499.99,0.00016931,2]
[394477881,1763617838822,-2950.54,0.00016931,2]
[394477882,1763617838833,-1702.76,0.00016931,2]
[394477883,1763617838844,-1000.0,0.00016932,2]
[394477884,1763617838855,-11707.06587629,0.00016939,2]
[394477885,1763617838866,-489.02727717,0.00016946,2]
[394477886,1763617838877,-150.0,0.0001695,2]
[394477887,1763617838889,-150.0,0.00016971,2]
[394477888,1763617838900,-703.77091929,0.00016991,2]
[394477889,1763617838912,-10182.16434936,0.00016991,2]
[394477890,1763617838924,-200.0,0.00016995,2]
[394477891,1763617838935,-205.0,0.00016996,2]
[394477892,1763617838946,-150.0,0.00017,2]
[394477893,1763617838957,-250.0,0.00017,2]
[394477894,1763617838968,-500.0,0.00017028,2]
[394477895,1763617838979,-6535.35883216,0.0001703,2]
[394477896,1763617838991,-509.31660826,0.0001703,2]
[394477897,1763617839002,-500.0,0.0001703,2]
[394477898,1763617839012,-634.92,0.0001703,2]
[394477899,1763617839022,-500.0,0.0001703,2]
[394477900,1763617839034,-500.0,0.0001703,2]
[394477901,1763617839229,-634.92,0.00017031,2]
[394477902,1763617839249,-634.92,0.00017031,2]
[394477903,1763617839264,-634.92,0.00017031,2]
[394477904,1763617839273,-500.0,0.00017031,2]
[394477905,1763617839283,-500.0,0.00017031,2]
[394477906,1763617839293,-500.0,0.00017031,2]
[394477907,1763617839303,-500.0,0.00017031,2]
[394477908,1763617839312,-500.0,0.00017031,2]
[394477909,1763617839321,-500.0,0.00017031,2]
[394477910,1763617839331,-603.68373459,0.00017031,2]
[394477911,1763617839341,-523.99537992,0.00017031,2]
[394477912,1763617839350,-11707.06587621,0.00017046,2]
[394477913,1763617839360,-639.05819945,0.00017072,2]
[394477914,1763617839370,-500.0,0.00017073,2]
[394477915,1763617839379,-500.0,0.00017073,2]
[394477916,1763617839389,-503.07559405,0.00017073,2]
[394477917,1763617839398,-500.0,0.00017073,2]
[394477918,1763617839407,-500.0,0.00017073,2]
[394477919,1763617839417,-383.28869737,0.00017073,2]
[394477920,1763617839427,-500.0,0.00017073,2]
[394477921,1763617839438,-501.03449953,0.00017073,2]
[394477922,1763617839447,-500.0,0.00017073,2]
[394477923,1763617839456,-150.0,0.000171,2]
[394477924,1763617839466,-150.0,0.000171,2]
[394477925,1763617839475,-150.0,0.000171,2]
[394477926,1763617839485,-150.0,0.000171,2]
[394477927,1763617839494,-703.77091929,0.00017121,2]
[394477928,1763617839504,-10182.16434936,0.00017121,2]
[394477929,1763617839514,-11707.06587621,0.00017153,2]
[394477930,1763617839523,-300.0,0.00017178,2]
[394477931,1763617839532,-550.68,0.00017178,2]
[394477932,1763617839541,-550.68,0.00017178,2]
[394477933,1763617839551,-302.22,0.00017178,2]
[394477934,1763617839560,-177.5,0.00017178,2]
[394477935,1763617839570,-831.31,0.00017178,2]
[394477936,1763617839579,-177.5,0.00017178,2]
[394477937,1763617839589,-177.5,0.00017178,2]
[394477938,1763617839598,-177.5,0.00017178,2]
[394477939,1763617839607,-177.5,0.00017178,2]
[394477940,1763617839617,-930.52,0.00017178,2]
[394477941,1763617839626,-150.0,0.00017178,2]
[394477942,1763617839636,-358.96,0.00017178,2]
[394477943,1763617839645,-150.0,0.00017178,2]
[394477944,1763617839654,-169.6,0.00017178,2]
[394477945,1763617839664,-150.0,0.00017178,2]
[394477946,1763617839674,-150.0,0.00017178,2]
[394477947,1763617839683,-169.6,0.00017178,2]
[394477948,1763617839693,-150.0,0.00017178,2]
[394477949,1763617839703,-257.0,0.00017185,2]
[394477950,1763617839712,-13465.65399865,0.000172,2]
[394477951,1763617839723,-150.0,0.000172,2]
[394477952,1763617839733,-1702.76,0.00017205,2]
[394477953,1763617839743,-150.0,0.00017229,2]
[394477954,1763617839752,-150.0,0.0001725,2]
[394477955,1763617839762,-703.77091929,0.00017251,2]
[394477956,1763617839772,-10182.16434936,0.00017251,2]
[394477957,1763617839783,-11707.06587621,0.00017259,2]
[394477958,1763617839792,-150.0,0.0001728,2]
[394477959,1763617839802,-150.0,0.00017325,2]
[394477960,1763617839812,-500.0,0.00017326,2]
[394477961,1763617839821,-500.0,0.00017326,2]
[394477962,1763617839831,-500.0,0.00017326,2]
[394477963,1763617839840,-500.0,0.00017326,2]
[394477964,1763617839849,-411.7374563,0.00017326,2]
[394477965,1763617839858,-514.28691293,0.00017326,2]
[394477966,1763617839867,-453.63718322,0.00017345,2]
[394477967,1763617839876,-11707.06587621,0.00017366,2]
[394477968,1763617839886,-489.02727717,0.00017372,2]
[394477969,1763617839895,-703.77091929,0.0001738,2]
[394477970,1763617839904,-10182.16434936,0.0001738,2]
[394477971,1763617839913,-167.56685966,0.00017386,2]
[394477972,1763617839923,-2192.3165228,0.00017388,2]
[394477973,1763617839933,-150.0,0.000174,2]
[394477974,1763617839941,-150.0,0.000174,2]
[394477975,1763617839951,-150.0,0.000174,2]
[394477976,1763617839960,-150.0,0.000174,2]
[394477977,1763617839969,-150.0,0.000174,2]
[394477978,1763617839978,-300.0,0.00017417,2]
[394477979,1763617839987,-1000.0,0.00017421,2]
[394477980,1763617839997,-860.35317207,0.00017421,2]
[394477981,1763617840006,-1000.0,0.00017421,2]
[394477982,1763617840016,-825.74821255,0.00017421,2]
[394477983,1763617840025,-1000.0,0.00017421,2]
[394477984,1763617840035,-1000.0,0.00017421,2]
[394477985,1763617840044,-1000.0,0.00017421,2]
[394477986,1763617840054,-1000.0,0.00017465,2]
[394477987,1763617840064,-500.0,0.00017472,2]
[394477988,1763617840077,-11707.06587621,0.00017473,2]
[394477989,1763617840087,-634.92,0.00017473,2]
[394477990,1763617840096,-2192.31652278,0.00017473,2]
[394477991,1763617840106,-1702.76,0.00017479,2]
[394477992,1763617840117,-453.63718322,0.00017484,2]
[394477993,1763617840126,-150.0,0.00017486,2]
[394477995,1763617840136,-1600.0,0.000175,6]
[394477996,1763617840147,-703.77091929,0.0001751,2]
[394477997,1763617840157,-10182.16434936,0.0001751,2]
[394477998,1763617840167,-167.56685966,0.00017515,2]
[394477999,1763617840176,-150.0,0.0001755,2]
[394478001,1763617840186,-150.0,0.0001755,2]
[394478003,1763617840195,-150.0,0.0001755,2]
[394478005,1763617840205,-2192.31652278,0.00017559,2]
[394478007,1763617840215,-11707.06587621,0.0001758,2]
[394478009,1763617840225,-262.0,0.00017592,2]
[394478011,1763617840235,-150.0,0.000176,2]
[394478013,1763617840244,-300.0,0.000176,6]
[394478015,1763617840254,-1319.0,0.00017615,2]
[394478017,1763617840263,-3434.0,0.00017615,2]
[394478019,1763617840274,-575.0,0.00017615,2]
[394478021,1763617840283,-609.784,0.00017615,2]
[394478023,1763617840293,-822.0,0.00017615,2]
[394478025,1763617840303,-1601.547,0.00017615,2]
[394478027,1763617840313,-930.251,0.00017615,2]
[394478029,1763617840323,-798.021,0.00017615,2]
[394478031,1763617840332,-1256.0,0.00017615,2]
[394478033,1763617840342,-1605.0,0.00017615,2]
[394478036,1763617840352,-561.0,0.00017615,2]
[394478038,1763617840362,-708.819,0.00017615,2]
[394478040,1763617840372,-2500.0,0.00017618,2]
[394478042,1763617840381,-150.0,0.00017618,2]
[394478043,1763617840391,-300.0,0.00017618,2]
[394478044,1763617840401,-150.12675746,0.00017618,2]
[394478045,1763617840410,-5000.0,0.00017618,4]
[394478046,1763617840419,-193.0,0.00017618,2]
[394478047,1763617840429,-250.0,0.00017618,2]
[394478048,1763617840438,-420.0,0.00017618,2]
[394478049,1763617840448,-420.0,0.00017618,2]
[394478051,1763617840457,-596.34053693,0.00017621,2]
[394478052,1763617840467,-500.0,0.00017621,2]